[Event "FIDE Women GP Cyprus 2025"]
[Site "Nicosia"]
[Date "2025.03.21"]
[Round "6.5"]
[White "Divya Deshmukh"]
[Black "Tsolakidou, Stavroula"]
[Result "1/2-1/2"]
[Annotator "TA"]
[ECO "C84"]
[WhiteElo "2470"]
[BlackElo "2445"]
[PlyCount "81"]
[EventDate "2025.03.10"]
[EventType "tourn"]
[EventCountry "CYP"]
[SourceTitle "playchess.com"]
[Source "ChessBase"]
[SourceQuality "1"]
[TimeControl "40/5400+30:1800+30"]

{[%evp 13,81,59,61,54,58,63,59,56,58,42,50,18,29,31,23,16,22,18,33,33,33,30,59,52,52,48,50,37,60,33,39,24,26,25,23,23,11,13,17,7,18,0,14,0,0,0,0,0,0,0,0,0,0,0,0,0,0,0,0,0,0,0,0,0,0,0,0,0,0,0]} 1. e4 {[%emt 0:00:03]} e5 {[%emt 0:00:09]} 2. Nf3 {[%emt 0:00:03]} Nc6 {[%emt 0:00:08]} 3. Bb5 {[%emt 0:00:13]} a6 {[%emt 0:00:14]} 4. Ba4 {[%emt 0:00:00]} Nf6 {[%emt 0:00:45]} 5. O-O {[%emt 0:00:03]} Nxe4 {[%emt 0:03:03]} 6. d4 {[%emt 0:00:23]} Be7 {[%emt 0:00:42]} 7. Re1 {[%emt 0:00:19][%cal Bf1e1,Be1e4,Be4e5][%mdl 32]} b5 {[%emt 0:00:00]} 8. Rxe4 {[%emt 0:00:09] [#] and Bb3 would now be decisive C84: Closed Ruy Lopez: Unusual White 6th moves.} ({Don't play} 8. Nxe5 Nxe5 9. dxe5 Bb7 $11 (9... Nxf2 10. Qf3 $11)) (8. dxe5 Nxf2 9. Kxf2 bxa4 $17) 8... d5 {[%emt 0:00:00]} 9. Nxe5 $1 {[%emt 0:03:15]} Nxe5 {[%emt 0:00:00]} 10. Rxe5 {[%emt 0:00:03] White is slightly better.} bxa4 {[%emt 0:00:00]} 11. b3 {[%emt 0:12:32][%csl Oa4,Oa6] Black has weak pawns} O-O {[%emt 0:00:00]} 12. Ba3 {[%emt 0:00:04]} Bxa3 {[%emt 0:00:00]} 13. Nxa3 {[%emt 0:00:02]} Re8 {[%emt 0:00:00]} 14. Rxe8+ {[%emt 0:00:26]} Qxe8 {[%emt 0:00:00]} 15. Nb1 {[%emt 0:00:03]} Qc6 {[%emt 0:04:47] Repels Nc3} 16. Qd2 {[%emt 0:08:04]} Bf5 {[%emt 0:12:30]} 17. Nc3 {[%emt 0:00:11]} a3 {[%emt 0:00:21]} 18. Re1 {[%emt 0:03:46][%cal Ba1e1,Be1e2,Be2e5][%mdl 32]} Rd8 $146 {[%emt 0:13:02]} (18... f6 19. h3 h5 20. Re2 Kh7 21. Na4 Re8 22. Nc5 a5 23. c3 Qb5 24. Re3 Rxe3 25. Qxe3 {0-1 Ivic,V (2581)-Martinez Alcantara,J (2620) Titled Tuesday intern op 09th Feb blitz 2021 (4)}) 19. Re2 {[%emt 0:13:22]} h5 {[%emt 0:14:14]} 20. Re5 {[%emt 0:21:03]} Bg6 {[%emt 0:03:15]} 21. h3 {[%emt 0:03:31]} Rd6 {[%emt 0:16:34]} 22. Kf1 {[%emt 0:01:05]} f6 {[%emt 0:02:55]} 23. Re2 {[%emt 0:00:27]} Re6 {[%emt 0:06:32]} 24. Rxe6 {[%emt 0:06:43]} Qxe6 $11 {[%emt 0:00:05][%mdl 4096] Endgame KQB-KQN} 25. Nd1 {[%emt 0:00:02] The position is equal.} Qd6 {[%emt 0:01:13]} 26. Ke2 {[%emt 0:07:57]} c6 {[%emt 0:05:12]} 27. Qc3 {[%emt 0:07:41]} f5 {[%emt 0:05:53]} 28. f4 {[%emt 0:06:25]} Qxf4 {[%emt 0:06:58] [#]} 29. Qxc6 {[%emt 0:00:39]} Bf7 {[%emt 0:00:34]} 30. Qc8+ {[%emt 0:04:46]} (30. Qxa6 Qe4+ 31. Kf1 (31. Ne3 $2 f4 $19) 31... Qxc2 $11 (31... Qxd4 32. Qe2 $17)) 30... Kh7 {[%emt 0:00:04]} 31. Ne3 {[%emt 0:00:01]} Bg6 {[%emt 0:02:58]} 32. Qc5 {[%emt 0:00:36]} (32. Nxd5 $2 Qe4+ (32... Qxd4 33. Qe6 $19) 33. Kf1 (33. Ne3 $2 f4 $19) 33... Qxd5 $19) (32. Qxa6 $2 Qg3 33. Nd1 (33. Nxd5 $2 Qxg2+ 34. Ke1 Qxd5 $19) (33. Qxa3 $2 f4 $19) 33... Qxg2+ 34. Nf2 f4 $19) 32... Qg3 {[%emt 0:01:06]} 33. Qxd5 {[%emt 0:00:22]} (33. Qxa3 $2 {perishes.} f4 34. Qc1 fxe3 $19) 33... f4 {[%emt 0:00:08]} 34. Nd1 {[%emt 0:01:11]} Bxc2 {[%emt 0:03:21]} 35. Qxh5+ {[%emt 0:00:02]} Kg8 {[%emt 0:00:06]} 36. Qe8+ {[%emt 0:02:07]} Kh7 {[%emt 0:00:04]} 37. Qh5+ {[%emt 0:00:08]} Kg8 {[%emt 0:00:04]} 38. Qe8+ {[%emt 0:00:53]} Kh7 {[%emt 0:00:04]} 39. Qh5+ {[%emt 0:00:04]} Kg8 {[%emt 0:00:03]} 40. Qd5+ {[%emt 0:00:59]} Kh7 {[%emt 0:00:38] and ...Qd3+ should not be overlooked} 41. Qh5+ {[%emt 0:07:54] Weighted Error Value: White=0.05 (flawless) /Black=0.03 (flawless)   Inaccurate:     	White=2     	Black=1      OK:         	White=11    	Black=15     Best:        	White=4     	Black=1      Strong:       	White=1     	---} 1/2-1/2